bitfinex/quotes_SOLUSD_20250101
["timestamp","ask_amount","ask_price","bid_price","bid_amount"]
[1735729170105,136.3,190.67,190.61,1.642]
[1735729170827,141.3,190.67,190.61,1.642]
[1735729171118,5.0,190.63,190.56,7.8594]
[1735729171318,10.98369394,190.63,190.56,7.8594]
[1735729171517,5.0,190.62,190.56,7.8594]
[1735729172106,5.0,190.62,190.57,1.79641403]
[1735729172609,5.0,190.62,190.58,1.79641403]
[1735729173718,5.0,190.62,190.56,7.8594]
[1735729173898,146.3,190.62,190.56,7.8594]
[1735729174520,5.0,190.61,190.56,7.8594]
[1735729174718,5.0,190.61,190.57,1.79689271]
[1735729175416,5.98377287,190.61,190.54,23.776884]
[1735729175717,5.98377287,190.61,190.53,24.17036421]
[1735729175918,5.98377287,190.61,190.53,34.44414784]
[1735729176220,5.98377287,190.61,190.54,1.79716118]
[1735729176221,5.0,190.6,190.54,1.79716118]
[1735729176721,5.0,190.6,190.55,1.79716118]
[1735729177522,5.0,190.6,190.52,6.5891]
[1735729177523,0.98380524,190.59,190.52,6.5891]
[1735729177822,5.98380524,190.59,190.52,6.5891]
[1735729179811,5.0,190.58,190.52,6.5891]
[1735729180122,5.98397245,190.57,190.52,6.5891]
[1735729180494,141.3,190.56,190.52,6.5891]
[1735729181623,136.3,190.56,190.52,6.5891]
[1735729184125,141.3,190.56,190.52,6.5891]
[1735729184524,136.3,190.56,190.52,6.5891]
[1735729186014,141.3,190.56,190.52,6.5891]
[1735729186615,141.3,190.56,190.51,1.642]
[1735729188031,136.3,190.56,190.51,1.642]
[1735729188439,141.3,190.56,190.51,1.642]
[1735729188743,136.3,190.56,190.51,1.642]
[1735729193775,136.3,190.56,190.51,11.91578363]
[1735729193965,136.3,190.56,190.51,1.642]
[1735729194165,141.3,190.58,190.51,1.642]
[1735729194558,0.98395968,190.57,190.51,1.642]
[1735729195576,141.3,190.58,190.51,1.642]
[1735729195577,136.3,190.58,190.51,1.642]
[1735729197079,10.0,190.59,190.51,1.642]
[1735729197582,0.98392958,190.58,190.51,1.642]
[1735729197983,5.0,190.59,190.51,1.642]
[1735729198182,0.98392206,190.59,190.51,1.642]
[1735729198785,136.3,190.59,190.51,1.642]
[1735729199185,141.3,190.59,190.51,1.642]
[1735729199483,136.3,190.59,190.51,1.642]
[1735729200375,5.0,190.58,190.51,1.642]
[1735729200574,141.3,190.59,190.51,1.642]
[1735729200974,5.0,190.57,190.51,1.642]
[1735729202083,146.3,190.59,190.51,1.642]
[1735729202288,141.3,190.59,190.51,1.642]
[1735729202489,0.98391104,190.58,190.51,1.642]
[1735729202675,141.3,190.59,190.51,1.642]
[1735729202878,136.3,190.59,190.51,1.642]
[1735729203281,141.3,190.59,190.51,1.642]
[1735729203587,136.3,190.59,190.51,1.642]
[1735729206268,136.3,190.63,190.56,10.27378363]
[1735729206892,136.3,190.63,190.55,10.27378363]
[1735729207192,136.3,190.63,190.56,23.776884]
[1735729208194,136.3,190.63,190.56,10.27378363]
[1735729208489,136.3,190.63,190.57,10.27378363]
[1735729209072,136.3,190.63,190.56,10.6669696]
[1735729209488,0.98363544,190.62,190.55,23.776884]
[1735729209887,5.98363544,190.62,190.57,20.0]
[1735729210592,5.98363544,190.62,190.54,16.28318363]
[1735729210795,0.98363544,190.62,190.55,10.27378363]
[1735729211398,136.3,190.63,190.55,10.27378363]
[1735729212174,136.3,190.62,190.56,10.27378363]
[1735729212590,136.3,190.62,190.54,6.0094]
[1735729212591,0.98371237,190.61,190.54,6.0094]
[1735729212795,5.98371237,190.61,190.54,6.0094]
[1735729213499,5.0,190.6,190.54,6.0094]
[1735729213797,0.98388201,190.59,190.54,6.0094]
[1735729215100,0.98390682,190.6,190.54,6.0094]
[1735729216802,0.98390682,190.6,190.54,16.28318363]
[1735729217789,136.3,190.61,190.54,16.28318363]
[1735729218103,136.3,190.6,190.55,1.79733294]
[1735729219205,141.3,190.6,190.54,16.28318363]
[1735729219411,0.98388029,190.59,190.54,6.0094]
[1735729220705,0.98388029,190.59,190.55,1.79781234]
[1735729220893,141.3,190.6,190.55,1.79781234]
[1735729221206,136.3,190.6,190.55,1.79781234]
[1735729221407,136.3,190.6,190.54,6.0094]
[1735729221986,136.3,190.6,190.54,16.28318363]
[1735729222285,136.3,190.6,190.55,10.27378363]
[1735729222486,136.3,190.64,190.58,10.27378363]
[1735729223583,141.3,190.64,190.57,10.27378363]
[1735729223782,0.98362345,190.63,190.56,10.27378363]
[1735729224192,5.0,190.62,190.55,10.27378363]
[1735729224404,0.9838221,190.61,190.57,1.79661346]
[1735729224902,5.9838221,190.61,190.57,1.79661346]
[1735729225207,5.9838221,190.61,190.54,16.28318363]
[1735729225982,5.9838221,190.61,190.55,1.7970154]
[1735729226183,0.9838221,190.61,190.55,1.7970154]
[1735729226401,0.9838221,190.61,190.55,12.07079903]
[1735729226601,0.9838221,190.61,190.55,10.27378363]
[1735729227101,137.2838221,190.61,190.55,10.27378363]
[1735729227283,136.3,190.61,190.55,10.27378363]
[1735729227712,141.3,190.61,190.55,10.27378363]
[1735729227879,141.3,190.61,190.56,1.79712654]
[1735729228083,136.3,190.61,190.56,1.79712654]
[1735729228507,141.3,190.61,190.56,1.79712654]
[1735729228696,0.98384934,190.6,190.56,1.79712654]
[1735729229107,0.98384934,190.6,190.55,10.27378363]
[1735729229605,5.0,190.59,190.52,10.27378363]
[1735729229802,0.98398178,190.58,190.52,10.27378363]
[1735729230117,0.98398178,190.58,190.53,1.79778886]
[1735729230414,5.98398178,190.58,190.53,1.79778886]
[1735729230785,5.98398178,190.58,190.54,1.79778886]
[1735729231492,5.98398178,190.58,190.52,10.27378363]
[1735729231689,10.98398178,190.58,190.52,10.27378363]
[1735729232010,10.98398178,190.58,190.53,1.79871835]
[1735729232690,10.98398178,190.58,190.52,10.27378363]
[1735729234015,10.98398178,190.58,190.53,1.79915378]
[1735729234612,10.98398178,190.58,190.52,10.27378363]
[1735729235718,10.98398178,190.58,190.51,1.642]
[1735729235895,10.98398178,190.58,190.52,10.27378363]
[1735729236092,10.98398178,190.58,190.52,12.07329604]
[1735729236820,10.98398178,190.58,190.53,1.79951241]
[1735729237718,10.98398178,190.58,190.52,10.27378363]
[1735729239401,10.98398178,190.58,190.53,1.79993842]
[1735729240222,10.98398178,190.58,190.52,10.27378363]
[1735729240723,5.98398178,190.58,190.53,10.27378363]
[1735729241830,5.0,190.58,190.54,10.27378363]
[1735729241994,0.98395105,190.62,190.56,10.27378363]
[1735729241995,137.28392644,190.59,190.56,10.27378363]
[1735729242322,136.3,190.59,190.56,10.27378363]
[1735729243018,136.3,190.59,190.57,10.27378363]
[1735729245229,136.3,190.62,190.57,10.27378363]
[1735729245518,136.3,190.62,190.55,10.27378363]
[1735729245519,10.0,190.6,190.55,10.27378363]
[1735729245717,0.98389546,190.59,190.55,10.27378363]
[1735729246128,5.0,190.58,190.56,1.79957359]
[1735729246628,5.98389546,190.59,190.56,1.79957359]
[1735729246823,5.98389546,190.59,190.54,10.27378363]
[1735729247526,10.0,190.58,190.53,10.27378363]
[1735729248422,10.0,190.58,190.54,1.80008253]
[1735729248625,5.0,190.58,190.54,1.80008253]
[1735729248815,10.0,190.58,190.54,1.80008253]
[1735729249134,10.0,190.58,190.55,1.80008253]
[1735729249315,5.0,190.58,190.55,1.80008253]
[1735729250031,5.0,190.58,190.53,10.27378363]
[1735729250232,5.98395434,190.59,190.53,10.27378363]
[1735729250527,5.98395434,190.59,190.51,23.776884]
[1735729250528,5.0,190.58,190.54,10.27378363]
[1735729250709,0.98390556,190.61,190.52,13.1214]
[1735729250922,141.3,190.62,190.56,10.27378363]
[1735729251109,146.3,190.62,190.56,10.27378363]
[1735729251309,10.0,190.62,190.56,10.27378363]
[1735729251829,146.3,190.62,190.57,1.80054157]
[1735729252530,146.3,190.62,190.56,10.27378363]
[1735729252710,0.98378142,190.61,190.56,10.27378363]
[1735729252912,5.98378142,190.61,190.55,10.27378363]
[1735729253112,0.98378142,190.61,190.55,10.27378363]
[1735729254033,0.98378142,190.61,190.56,1.80009315]
[1735729254513,0.98378142,190.61,190.57,1.80009315]
[1735729254703,0.98378469,190.62,190.57,1.80009315]
[1735729254904,146.3,190.63,190.57,1.80009315]
[1735729254905,141.3,190.64,190.57,12.07387678]
[1735729255231,141.3,190.64,190.58,10.27378363]
[1735729255430,141.3,190.64,190.58,12.07387678]
[1735729255808,136.3,190.64,190.58,12.07387678]
[1735729256140,136.3,190.64,190.58,10.27378363]
[1735729256344,136.3,190.64,190.59,10.27378363]
[1735729256930,136.3,190.67,190.61,10.27378363]
[1735729257123,5.0,190.68,190.63,10.27378363]
[1735729257329,10.0,190.66,190.61,10.27378363]
[1735729257530,10.98356009,190.66,190.61,10.27378363]
[1735729259205,10.98356009,190.66,190.6,10.27378363]
[1735729259510,0.98357149,190.65,190.6,10.27378363]
[1735729259834,0.98357648,190.65,190.59,10.27378363]
[1735729260130,0.98357648,190.65,190.61,1.79833541]
[1735729260848,5.0,190.63,190.57,10.27378363]
[1735729261011,0.98373506,190.62,190.57,10.27378363]
[1735729261334,5.98373275,190.63,190.58,1.79873909]
[1735729262136,5.98373275,190.63,190.57,10.27378363]
[1735729262315,5.98373275,190.63,190.56,16.37038363]
[1735729262814,5.98373275,190.63,190.57,1.79857847]
[1735729263008,0.98373275,190.63,190.59,10.27378363]
[1735729263209,0.98373275,190.63,190.57,1.79857847]
[1735729263210,5.0,190.66,190.6,10.27378363]
[1735729263413,5.98356324,190.66,190.6,10.27378363]
[1735729263723,5.98356324,190.66,190.61,1.79857847]
[1735729264417,5.98356324,190.66,190.59,10.27378363]
[1735729265331,0.98356324,190.66,190.59,10.27378363]
[1735729265523,0.98356324,190.66,190.6,1.79699266]
[1735729266026,0.98356324,190.66,190.61,1.79699266]
[1735729266221,137.28356324,190.66,190.61,1.79699266]
[1735729266428,136.3,190.66,190.61,1.79699266]
[1735729266633,146.3,190.66,190.6,10.27378363]
[1735729266822,0.98357255,190.65,190.6,10.27378363]
[1735729267226,141.3,190.66,190.6,10.27378363]
[1735729267629,0.98357282,190.65,190.6,10.27378363]
[1735729268434,5.98357282,190.65,190.59,10.27378363]
[1735729268646,5.0,190.63,190.56,23.776884]
[1735729268813,0.98375466,190.62,190.56,34.05066763]
[1735729269321,0.98375466,190.62,190.57,1.79648705]
[1735729269525,10.0,190.63,190.57,1.79648705]
[1735729269717,0.9837292,190.62,190.57,1.79648705]
[1735729269918,0.9837292,190.62,190.57,12.07027068]
[1735729270429,0.9837292,190.62,190.58,1.79648705]
[1735729271242,0.9837292,190.62,190.57,10.27378363]
[1735729272525,0.9837292,190.62,190.56,34.05066763]
[1735729272945,0.9837292,190.62,190.58,1.79567066]
[1735729273645,0.9837292,190.62,190.56,34.05066763]
[1735729274448,0.9837292,190.62,190.57,1.79583757]
[1735729274754,5.98373254,190.63,190.57,12.0696212]
[1735729275049,5.98373254,190.63,190.57,1.79583757]
[1735729275225,5.98373254,190.63,190.58,1.79583757]
[1735729275940,5.98373254,190.63,190.57,10.27378363]
[1735729277045,5.0,190.63,190.57,10.27378363]
[1735729277256,10.9837092,190.64,190.58,10.27378363]
[1735729277435,10.98369425,190.66,190.59,10.27378363]
[1735729277638,0.98369425,190.66,190.59,10.27378363]
[1735729278042,137.28369425,190.66,190.6,12.06905448]
[1735729278242,136.3,190.66,190.6,12.06905448]
[1735729278653,136.3,190.66,190.6,10.27378363]
[1735729279829,0.98357556,190.65,190.6,10.27378363]
[1735729280249,136.3,190.66,190.6,10.27378363]
[1735729280547,136.3,190.71,190.65,10.27378363]
[1735729280750,5.0,190.67,190.61,20.0]
[1735729281063,0.98358121,190.66,190.61,1.79465995]
[1735729281629,0.98358121,190.66,190.6,10.27378363]
[1735729282240,136.3,190.67,190.61,10.27378363]
[1735729282442,136.3,190.67,190.61,20.0]
[1735729282644,136.3,190.67,190.61,30.27378363]
[1735729283357,136.3,190.67,190.62,30.27378363]
[1735729283538,136.3,190.67,190.62,20.0]
[1735729283938,136.3,190.67,190.62,30.27378363]
[1735729284357,136.3,190.68,190.62,30.27378363]
[1735729284559,136.3,190.7,190.63,10.27378363]
[1735729284734,136.3,190.7,190.64,10.27378363]
[1735729285141,5.0,190.69,190.64,10.27378363]
[1735729285350,0.9833605,190.69,190.63,10.27378363]
[1735729285532,136.3,190.7,190.65,10.27378363]
[1735729286265,5.0,190.72,190.65,10.27378363]
[1735729286433,5.98325036,190.72,190.65,10.27378363]
[1735729286837,0.98325036,190.72,190.66,10.27378363]
[1735729287451,11.6524,190.74,190.66,10.27378363]
[1735729287452,0.98322955,190.73,190.66,10.27378363]
[1735729287651,5.0,190.7,190.64,10.27378363]
[1735729287851,5.0,190.68,190.62,11.79918363]
[1735729288055,0.98348266,190.67,190.61,10.27378363]
[1735729288566,0.98347428,190.68,190.62,21.79415782]
[1735729289062,5.98347428,190.68,190.62,21.79415782]
[1735729289771,5.98347428,190.68,190.62,20.0]
[1735729290364,0.98347428,190.68,190.62,20.0]
[1735729291158,5.98344205,190.67,190.62,20.0]
[1735729291336,5.0,190.65,190.58,7.8448]
[1735729291543,5.98365386,190.64,190.56,23.39278363]
[1735729291972,5.98365386,190.64,190.59,20.0]
[1735729292463,5.98365386,190.64,190.57,1.79481644]
[1735729292464,5.0,190.61,190.57,1.79481644]
[1735729292659,0.98384074,190.6,190.57,1.79481644]
[1735729292851,5.98384074,190.6,190.52,23.39508363]
[1735729293050,5.98384074,190.6,190.55,20.0]
[1735729293441,5.98384074,190.6,190.56,1.79627447]
[1735729294036,5.98384074,190.6,190.57,1.79627447]
[1735729294741,5.98384074,190.6,190.55,20.0]
[1735729295565,5.98384074,190.6,190.56,1.79663281]
[1735729296163,5.98384074,190.6,190.57,1.79663281]
[1735729297053,5.98384074,190.6,190.55,20.0]
[1735729297569,5.98384074,190.6,190.56,1.79743504]
[1735729298079,10.0,190.57,190.56,1.79743504]
[1735729298253,10.0,190.57,190.49,13.1239]
[1735729298565,5.98411131,190.56,190.49,23.39768363]
[1735729298762,10.98411131,190.56,190.49,23.39768363]
[1735729298968,5.98411131,190.56,190.5,1.79788171]
[1735729299469,5.98411131,190.56,190.51,1.79788171]
[1735729300270,5.98411131,190.56,190.5,10.27378363]
[1735729300447,5.98411131,190.56,190.5,23.776884]
[1735729301278,5.98411131,190.56,190.5,43.776884]
[1735729301462,5.98411131,190.56,190.5,23.776884]
[1735729301761,5.98411131,190.56,190.51,1.79716894]
[1735729301964,5.0,190.54,190.51,1.79716894]
[1735729302172,0.98423222,190.53,190.51,1.79716894]
[1735729302470,0.98423222,190.53,190.49,20.0]
[1735729302770,10.98423222,190.53,190.47,1.79716894]
[1735729302948,5.98423222,190.53,190.47,12.07095257]
[1735729303370,5.98423222,190.53,190.48,1.79716894]
[1735729304045,5.98423222,190.53,190.5,20.0]
[1735729304247,5.0,190.53,190.5,20.0]
[1735729304654,5.98421839,190.54,190.5,20.0]
[1735729305762,5.98421839,190.54,190.49,20.0]
[1735729306067,5.98421839,190.54,190.48,23.776884]
[1735729307975,0.98421839,190.54,190.47,34.05066763]
[1735729308174,5.98421839,190.54,190.48,23.776884]
[1735729308550,10.98421839,190.54,190.48,23.776884]
[1735729308773,5.0,190.52,190.5,20.0]
[1735729309159,5.98428279,190.52,190.5,20.0]
[1735729310888,5.98428279,190.52,190.49,20.0]
[1735729312075,5.0,190.49,190.42,13.1281]
[1735729312285,5.98445765,190.48,190.42,13.1281]
[1735729312455,5.98445765,190.48,190.4,16.41388363]
[1735729312456,10.0,190.47,190.4,6.1401]
[1735729312655,0.9845744,190.46,190.41,23.776884]
[1735729312879,0.9845744,190.46,190.41,25.56879567]
[1735729313283,0.9845744,190.46,190.42,20.0]
[1735729314082,0.9845744,190.46,190.43,20.0]
[1735729314279,5.0,190.47,190.43,20.0]
[1735729314469,5.98452792,190.47,190.43,20.0]
[1735729314666,0.98452792,190.47,190.43,20.0]
[1735729314982,136.3,190.5,190.45,20.0]
[1735729315387,136.3,190.5,190.44,30.27378363]
[1735729315684,136.3,190.5,190.44,20.0]
[1735729316072,141.3,190.5,190.44,20.0]
[1735729316585,136.3,190.5,190.44,20.0]
[1735729316885,141.3,190.5,190.44,20.0]
[1735729317085,136.3,190.5,190.44,20.0]
[1735729317301,5.0,190.51,190.44,20.0]
[1735729317584,0.98436977,190.5,190.44,20.0]
[1735729317780,0.98436977,190.5,190.44,30.27378363]
[1735729318288,5.98436977,190.5,190.44,30.27378363]
[1735729319592,5.98436977,190.5,190.44,20.0]
[1735729320183,5.0,190.49,190.44,20.0]
[1735729320388,0.98448155,190.48,190.44,20.0]
[1735729321901,0.98448741,190.5,190.44,20.0]
[1735729322197,5.98448741,190.5,190.44,20.0]
[1735729322893,5.0,190.49,190.44,20.0]
[1735729324811,0.9844346,190.48,190.44,20.0]
[1735729325797,5.0,190.47,190.41,23.776884]
[1735729325978,0.98458194,190.46,190.43,20.0]
[1735729326493,5.0,190.45,190.42,20.0]
[1735729326697,0.98466281,190.44,190.42,20.0]
[1735729327384,0.98465958,190.44,190.41,20.0]
[1735729327586,5.98465958,190.44,190.41,20.0]
[1735729329372,5.0,190.43,190.4,20.0]
[1735729329577,0.98477679,190.42,190.37,23.776884]
[1735729329897,10.0,190.43,190.37,23.776884]
[1735729330081,0.98476194,190.42,190.37,32.55066763]
[1735729330502,0.98476194,190.42,190.38,1.78854163]
[1735729330708,10.98476751,190.43,190.38,1.78854163]
[1735729331900,10.0,190.43,190.4,20.0]
[1735729334812,0.98475119,190.42,190.4,20.0]
[1735729336311,10.98476679,190.43,190.4,20.0]
[1735729336510,5.0,190.42,190.4,20.0]
[1735729337812,5.0,190.42,190.39,20.0]
[1735729338818,0.98480995,190.41,190.39,20.0]
[1735729339712,5.98482359,190.42,190.39,20.0]
[1735729341113,5.0,190.41,190.36,6.1401]
[1735729341314,5.98485893,190.41,190.36,6.1401]
[1735729341807,5.98485893,190.41,190.37,1.79613304]
[1735729342413,5.0,190.4,190.37,1.79613304]
[1735729342613,0.98497887,190.39,190.35,13.1335]
[1735729343316,0.98497887,190.39,190.36,1.79700191]
[1735729344086,10.0,190.38,190.36,1.79700191]
[1735729344290,10.98506655,190.37,190.3,10.27378363]
[1735729344491,5.0,190.36,190.32,20.0]
[1735729344705,0.98514684,190.35,190.32,20.0]
[1735729345120,0.98514684,190.35,190.33,1.79752627]
[1735729345294,5.0,190.34,190.33,1.79752627]
[1735729345494,0.98522742,190.36,190.33,1.79752627]
[1735729345694,5.98522742,190.36,190.33,1.79752627]
[1735729345992,0.98522742,190.36,190.33,1.79752627]
[1735729346490,5.98509526,190.38,190.32,10.27378363]
[1735729347520,5.0,190.37,190.32,10.27378363]
[1735729347723,0.98509597,190.36,190.32,10.27378363]
[1735729348026,5.98510087,190.39,190.33,1.79679788]
[1735729348207,5.0,190.38,190.33,1.79679788]
[1735729348409,0.98502435,190.37,190.33,1.79679788]
[1735729348607,0.98505979,190.39,190.34,34.05066763]
[1735729348817,141.3,190.4,190.36,30.27378363]
[1735729349127,5.0,190.39,190.36,20.0]
[1735729349927,0.9849568,190.39,190.36,20.0]
[1735729350820,0.98492714,190.39,190.36,20.0]
[1735729351197,5.0,190.38,190.3,13.137]
[1735729351402,5.0,190.36,190.31,10.27378363]
[1735729351723,5.0,190.34,190.31,1.7965179]
[1735729352223,5.98522894,190.34,190.32,1.7965179]
[1735729352920,5.98522894,190.34,190.31,1.7965179]
[1735729353610,5.98522894,190.34,190.32,1.7965179]
[1735729354119,5.98522894,190.34,190.3,20.0]
[1735729354850,5.98522894,190.34,190.3,30.27378363]
[1735729355004,5.98522894,190.34,190.31,1.79759086]
[1735729355723,5.98522894,190.34,190.32,1.79759086]
[1735729356329,5.98522894,190.34,190.3,30.27378363]
[1735729357026,5.98522894,190.34,190.31,1.79809457]
[1735729357224,5.0,190.34,190.31,1.79809457]
[1735729357405,0.98522753,190.33,190.31,1.79809457]
[1735729357906,0.98522753,190.33,190.32,1.79809457]
[1735729358335,5.98522753,190.33,190.32,1.79809457]
[1735729359640,141.3,190.34,190.3,20.0]
[1735729359641,136.3,190.34,190.3,30.27378363]
[1735729359936,0.98518562,190.33,190.3,20.0]
[1735729363338,5.98518562,190.33,190.3,20.0]
[1735729364853,5.0,190.24,190.15,21.77921565]
[1735729365020,10.0,190.35,190.15,21.77921565]
[1735729365021,10.0,190.27,190.21,10.27378363]
[1735729365230,0.9856279,190.26,190.21,10.27378363]
[1735729365820,0.9856279,190.26,190.22,10.27378363]
[1735729366147,0.98562994,190.27,190.22,10.27378363]
[1735729366447,5.98562994,190.27,190.22,10.27378363]
[1735729367033,5.98562994,190.27,190.21,12.07496441]
[1735729367722,0.98562994,190.27,190.21,10.27378363]
[1735729368041,0.98562994,190.27,190.22,10.27378363]
[1735729368351,0.98560703,190.28,190.24,30.27378363]
[1735729368952,0.98560703,190.28,190.24,20.0]
[1735729369241,5.98560703,190.28,190.24,20.0]
[1735729372255,141.3,190.33,190.27,30.27378363]
[1735729372439,5.0,190.31,190.28,10.27378363]
[1735729372828,0.98537711,190.3,190.27,30.27378363]
[1735729373328,0.98537711,190.3,190.27,20.0]
[1735729373657,5.0,190.31,190.27,20.0]
[1735729376651,0.98538313,190.3,190.27,20.0]
[1735729378028,0.98538313,190.3,190.27,30.27378363]
[1735729378660,0.98538313,190.3,190.27,20.0]
[1735729379130,0.98538966,190.32,190.27,20.0]
[1735729380649,5.98538966,190.32,190.27,20.0]
[1735729382452,0.98538966,190.32,190.27,20.0]
[1735729382631,5.98538966,190.32,190.27,20.0]
[1735729382835,0.98538966,190.32,190.27,20.0]
[1735729383150,5.98538966,190.32,190.27,20.0]
[1735729385256,0.98538966,190.32,190.27,20.0]
[1735729385757,0.98538966,190.32,190.28,1.80361653]
[1735729385950,5.98538966,190.32,190.28,1.80361653]
[1735729386146,0.98538966,190.32,190.28,1.80361653]
[1735729386752,2.55693768,190.34,190.28,14.94151653]
[1735729387136,0.98523768,190.34,190.31,10.27378363]
[1735729387351,0.98520806,190.35,190.33,10.27378363]
[1735729387631,5.0,190.39,190.34,10.27378363]
[1735729387851,5.0,190.39,190.36,10.27378363]
[1735729388263,5.0,190.4,190.36,10.27378363]
[1735729388460,0.98493312,190.39,190.35,1.80361653]
[1735729388636,8.2257,190.44,190.29,24.17304484]
[1735729388637,6.5837,190.44,190.38,10.27378363]
[1735729388837,0.98478472,190.43,190.4,10.27378363]
[1735729389058,2.56843908,190.44,190.4,10.27378363]
[1735729389359,0.98473908,190.44,190.4,10.27378363]
[1735729389545,0.98468756,190.45,190.42,10.27378363]
[1735729389747,5.0,190.43,190.39,20.0]
[1735729389943,5.0,190.43,190.36,23.776884]
[1735729389944,10.0,190.41,190.37,10.27378363]
[1735729390147,10.0,190.41,190.37,1.80322641]
[1735729390148,0.98488049,190.4,190.37,1.80322641]
[1735729390861,10.98484271,190.41,190.37,12.07701004]
[1735729391163,5.0,190.42,190.38,12.07701004]
[1735729391356,5.0,190.44,190.39,10.27378363]
[1735729391553,0.98473487,190.43,190.4,10.27378363]
[1735729392641,0.98473487,190.43,190.39,30.27378363]
[1735729392864,5.98471115,190.44,190.39,10.27378363]
[1735729393367,0.98470988,190.45,190.4,10.27378363]
[1735729393554,5.98470988,190.45,190.4,10.27378363]
[1735729393753,10.98470988,190.45,190.4,10.27378363]
[1735729393952,5.98470988,190.45,190.4,10.27378363]
[1735729394157,0.98470988,190.45,190.4,10.27378363]
[1735729394964,0.98465558,190.46,190.42,10.27378363]
[1735729395154,0.98465558,190.46,190.43,10.27378363]
[1735729395347,5.98465558,190.46,190.43,10.27378363]
[1735729395549,0.98465558,190.46,190.42,10.27378363]
[1735729396757,5.98465558,190.46,190.42,10.27378363]
[1735729397053,0.98465558,190.46,190.45,10.27378363]
[1735729397267,1.5837,190.48,190.45,10.27378363]
[1735729397566,0.98442236,190.49,190.47,10.27378363]
[1735729397978,5.98442272,190.5,190.47,10.27378363]
[1735729398144,5.98437989,190.51,190.49,10.27378363]
[1735729398341,0.98431599,190.52,190.49,10.27378363]
[1735729398756,0.98425513,190.53,190.5,10.27378363]
[1735729399368,0.98421244,190.54,190.5,10.27378363]
[1735729399896,5.98421244,190.54,190.51,10.27378363]
[1735729401041,0.98416674,190.55,190.51,10.27378363]
[1735729401247,6.6061,190.58,190.54,10.27378363]
[1735729401461,0.98399716,190.57,190.54,10.27378363]
[1735729401771,2.59009797,190.58,190.54,10.27378363]
[1735729401966,7.59009797,190.58,190.53,10.27378363]
[1735729402272,5.0,190.57,190.53,10.27378363]
[1735729402473,5.0,190.57,190.52,10.27378363]
[1735729402851,12.59009797,190.58,190.52,10.27378363]
[1735729403173,7.59009797,190.58,190.53,10.27378363]
[1735729403358,2.59009797,190.58,190.53,10.27378363]
[1735729403971,7.59009797,190.58,190.53,10.27378363]
[1735729404176,10.0,190.57,190.52,10.27378363]
[1735729407176,12.59009797,190.58,190.52,10.27378363]
[1735729407362,5.0,190.57,190.53,10.27378363]
[1735729407564,10.0,190.57,190.53,10.27378363]
[1735729407762,10.0,190.54,190.47,13.1247]
[1735729407965,10.98421556,190.53,190.47,10.27378363]
[1735729408268,5.0,190.52,190.47,10.27378363]
[1735729408963,5.0,190.52,190.48,10.27378363]
[1735729410674,5.98421556,190.53,190.49,23.776884]
[1735729410880,5.0,190.54,190.5,10.27378363]
[1735729411476,0.9841467,190.55,190.5,10.27378363]
[1735729412276,5.9841467,190.55,190.5,10.27378363]
[1735729412483,10.0,190.55,190.5,10.27378363]
[1735729412783,5.0,190.55,190.5,10.27378363]
[1735729413168,10.0,190.55,190.5,10.27378363]
[1735729413372,5.98411788,190.56,190.5,10.27378363]
[1735729413559,0.98411072,190.55,190.5,10.27378363]
[1735729414776,5.98411072,190.55,190.5,10.27378363]
[1735729414980,5.98411659,190.56,190.5,10.27378363]
[1735729415171,0.98410968,190.55,190.5,10.27378363]
[1735729415768,10.98409827,190.58,190.52,10.27378363]
[1735729415976,5.98409827,190.58,190.52,10.27378363]
[1735729416377,10.98409827,190.58,190.52,10.27378363]
[1735729416891,10.98409827,190.58,190.53,10.27378363]
[1735729417079,5.0,190.57,190.52,10.27378363]
[1735729417282,0.98403447,190.56,190.52,10.27378363]
[1735729417584,10.98404129,190.57,190.52,10.27378363]
[1735729418189,5.0,190.54,190.48,23.776884]
[1735729418371,5.0,190.54,190.5,10.27378363]
[1735729418569,5.0,190.52,190.48,10.27378363]
[1735729418877,5.98425175,190.51,190.47,10.27378363]
[1735729419066,5.98425175,190.51,190.5,20.0]